bitfinex-derivatives/quotes_SOLF0:USTF0_20250514
["timestamp","ask_amount","ask_price","bid_price","bid_amount"]
[1747245961001,11.88678431,176.2,176.14,5.6762]
[1747245961199,5.6757,176.17,176.1,65.04]
[1747245961403,65.52,176.16,176.1,65.04]
[1747245961695,71.196,176.16,176.1,65.04]
[1747245962103,65.52,176.16,176.1,65.04]
[1747245962704,65.52,176.16,176.13,5.6764]
[1747245963005,65.52,176.16,176.1,65.04]
[1747245963810,65.52,176.16,176.13,5.6765]
[1747245964507,65.52,176.16,176.11,5.6773]
[1747245964807,65.52,176.16,176.07,147.20374108]
[1747245965007,5.6778,176.1,176.04,65.04]
[1747245966209,65.38,176.11,176.04,65.04]
[1747245966405,65.38,176.11,176.09,5.678]
[1747245966807,65.38,176.11,176.04,65.04]
[1747245967105,65.38,176.11,176.08,5.6781]
[1747245967306,65.38,176.11,176.04,65.04]
[1747245968405,71.0576,176.11,176.04,65.04]
[1747245968808,5.6778,176.1,176.04,65.04]
[1747245969103,65.38,176.11,176.06,5.6787]
[1747245969305,65.38,176.11,176.01,5.4512]
[1747245969499,65.38,176.11,176.04,5.6794]
[1747245969500,10.03328431,176.09,176.04,5.6794]
[1747245969705,10.03328431,176.09,176.01,70.4912]
[1747245970407,65.38,176.11,176.01,70.4912]
[1747245970809,5.6777,176.1,176.01,70.4912]
[1747245971009,65.38,176.11,176.01,70.4912]
[1747245971309,5.6777,176.1,176.01,70.4912]
[1747245971507,65.38,176.11,176.01,70.4912]
[1747245971804,3.7013,176.15,176.01,70.4912]
[1747245972012,76.78998091,176.18,176.06,65.06]
[1747245972312,5.6766,176.14,176.06,65.06]
[1747245972616,10.03328431,176.14,176.01,5.4512]
[1747245972916,10.03328431,176.14,176.03,65.76]
[1747245972917,5.6773,176.12,176.03,65.76]
[1747245973408,71.6568,176.13,176.03,65.76]
[1747245973611,65.98,176.13,176.03,75.79328431]
[1747245974014,71.6568,176.13,176.03,75.79328431]
[1747245974514,71.6568,176.13,176.1,5.6776]
[1747245974709,5.6772,176.12,176.03,75.79328431]
[1747245974916,66.02,176.14,176.03,10.03328431]
[1747245975116,76.05328431,176.14,176.07,5.6785]
[1747245975415,5.6776,176.11,176.04,65.06]
[1747245975715,5.6776,176.11,176.07,5.6785]
[1747245975909,5.6777,176.1,176.07,5.6785]
[1747245977017,5.6781,176.09,176.03,65.06]
[1747245977218,3.7751,176.13,176.03,65.06]
[1747245977519,5.6775,176.11,176.07,5.6784]
[1747245978418,3.7751,176.13,176.07,5.6784]
[1747245978419,5.6777,176.1,176.07,5.6784]
[1747245978620,10.03328431,176.11,176.03,65.06]
[1747245978926,10.03328431,176.11,176.01,5.4512]
[1747245978927,5.6789,176.07,176.01,5.4512]
[1747245979218,66.04,176.1,176.04,5.6795]
[1747245979518,5.6786,176.08,176.04,5.6795]
[1747245979814,5.6786,176.08,176.05,5.6792]
[1747245980022,5.6781,176.09,176.05,5.6792]
[1747245980722,66.04,176.1,176.05,5.6792]
[1747245981212,5.6784,176.08,176.01,5.4512]
[1747245981414,66.04,176.1,176.01,5.4512]
[1747245981621,66.04,176.1,175.98,65.06]
[1747245981918,5.6787,176.07,176.03,5.6797]
[1747245982119,5.6787,176.07,175.98,65.06]
[1747245982320,131.1,176.1,176.04,5.6796]
[1747245982821,5.6785,176.08,176.04,5.6796]
[1747245983724,5.6785,176.08,176.05,5.6792]
[1747245984720,5.6785,176.08,176.04,5.6795]
[1747245985020,5.6785,176.08,175.98,65.06]
[1747245986016,5.6785,176.08,176.04,5.6794]
[1747245986221,5.6785,176.08,175.98,65.06]
[1747245986522,5.6781,176.09,175.99,10.03328431]
[1747245986721,131.1,176.1,175.99,10.03328431]
[1747245987020,5.6782,176.09,175.99,10.03328431]
[1747245987221,5.6782,176.09,176.05,5.6791]
[1747245987525,5.6782,176.09,175.99,10.03328431]
[1747245987929,5.6784,176.08,175.98,65.06]
[1747245988131,131.1,176.1,175.98,65.06]
[1747245988532,5.6789,176.07,175.98,65.06]
[1747245988831,66.4,176.11,176.0,10.03328431]
[1747245989025,5.6782,176.09,176.0,10.03328431]
[1747245989429,66.4,176.11,176.0,10.03328431]
[1747245989929,5.6778,176.1,176.0,10.03328431]
[1747245990131,72.1378,176.1,176.0,10.03328431]
[1747245990533,5.678,176.09,176.0,10.03328431]
[1747245990736,66.46,176.1,176.0,10.03328431]
[1747245991229,72.1379,176.1,176.07,5.6785]
[1747245993339,66.46,176.1,176.08,5.6783]
[1747245995341,72.1377,176.1,176.07,5.6786]
[1747245996040,5.6777,176.1,176.07,5.6786]
[1747245996243,71.8377,176.1,176.07,5.6786]
[1747245996544,5.6784,176.08,175.98,11.3629]
[1747245996836,5.6784,176.08,175.99,66.5]
[1747245997041,5.6787,176.07,176.04,5.6794]
[1747245997743,5.6791,176.06,176.03,5.6798]
[1747245998844,5.6788,176.07,176.03,5.6798]
[1747245999336,10.03328431,176.09,176.03,5.6798]
[1747245999536,10.03328431,176.09,176.04,5.6796]
[1747245999841,10.03328431,176.09,175.99,66.5]
[1747246000042,5.6789,176.07,175.99,66.5]
[1747246000235,5.6789,176.07,176.03,5.6797]
[1747246000632,5.6789,176.07,175.99,66.5]
[1747246000942,5.6789,176.07,176.03,5.6798]
[1747246001239,5.6789,176.07,175.99,66.5]
[1747246001543,10.03328431,176.09,176.04,5.6794]
[1747246001940,5.6789,176.07,176.04,5.6794]
[1747246002240,10.03328431,176.09,176.03,5.6798]
[1747246002441,5.679,176.06,176.03,5.6798]
[1747246003140,5.6794,176.05,176.02,5.6802]
[1747246003436,10.03328431,176.09,175.99,66.5]
[1747246003746,10.03328431,176.09,176.02,5.6803]
[1747246004439,10.03328431,176.09,175.97,10.03328431]
[1747246004647,10.03328431,176.06,175.97,66.5]
[1747246004842,10.03328431,176.03,175.95,66.5]
[1747246005043,5.6805,176.02,175.95,66.5]
[1747246005337,10.03328431,176.03,175.98,5.6814]
[1747246005538,5.6806,176.01,175.98,5.6814]
[1747246005742,10.03328431,176.03,175.95,66.5]
[1747246005942,10.03328431,176.03,175.99,5.681]
[1747246006346,15.71328431,176.03,175.99,5.681]
[1747246006751,65.74,176.05,175.95,66.5]
[1747246006938,65.72,176.07,175.97,10.03328431]
[1747246007143,65.72,176.07,175.98,3.6869]
[1747246007344,65.72,176.07,176.06,5.679]
[1747246007544,65.72,176.09,176.06,5.679]
[1747246007746,65.72,176.09,176.02,66.52]
[1747246007947,5.6783,176.08,176.05,5.6791]
[1747246012652,5.6783,176.08,176.02,66.52]
[1747246012653,65.72,176.09,176.0,66.52]
[1747246013355,5.6787,176.07,176.04,5.6794]
[1747246014756,5.6784,176.08,176.05,5.6793]
[1747246014955,65.72,176.09,176.0,66.52]
[1747246015356,65.72,176.09,176.0,76.55328431]
[1747246016159,66.52,176.1,176.0,76.55328431]
[1747246016456,5.678,176.09,176.06,5.6788]
[1747246017760,131.7,176.1,176.06,5.6788]
[1747246018159,5.6782,176.09,176.06,5.6788]
[1747246019361,5.6785,176.08,176.0,76.55328431]
[1747246019862,70.6381,176.09,176.0,76.55328431]
[1747246020159,5.6781,176.09,176.0,76.55328431]
[1747246020359,75.35328431,176.14,176.0,87.91518431]
[1747246020559,75.35328431,176.14,176.03,10.03328431]
[1747246020757,65.32,176.14,176.04,3.6587]
[1747246020962,130.3,176.14,176.05,65.32]
[1747246021157,75.35328431,176.14,176.04,3.6587]
[1747246021464,65.0,176.13,176.05,65.32]
[1747246021661,5.6779,176.1,176.07,5.6784]
[1747246022361,5.678,176.09,176.06,5.6789]
[1747246022558,65.0,176.13,176.05,65.32]
[1747246022951,5.6775,176.11,176.07,5.6784]
[1747246023162,65.0,176.13,176.04,3.6587]
[1747246023462,5.6774,176.11,176.08,5.6781]
[1747246024267,5.6777,176.1,176.07,5.6785]
[1747246025064,5.6777,176.1,176.04,68.9587]
[1747246025065,5.6775,176.11,176.08,5.6783]
[1747246025259,5.6775,176.11,176.04,68.9587]
[1747246026564,5.6775,176.11,176.08,5.6783]
[1747246026762,5.6775,176.11,176.04,68.9587]
[1747246027262,5.6775,176.11,176.07,5.6785]
[1747246027658,65.0,176.13,176.04,68.9587]
[1747246028265,5.6769,176.13,176.09,5.6778]
[1747246028563,70.1769,176.13,176.09,5.6778]
[1747246028964,5.6769,176.13,176.1,5.6776]
[1747246029259,65.32,176.14,176.04,68.9587]
[1747246029260,70.9965,176.14,176.04,68.9587]
[1747246029464,129.8,176.14,176.04,68.9587]
[1747246029969,5.6768,176.13,176.04,68.9587]
[1747246030467,5.6774,176.11,176.08,5.6781]
[1747246030660,129.8,176.14,176.04,68.9587]
[1747246031364,5.6776,176.11,176.08,5.6781]
[1747246031861,5.6776,176.11,176.07,5.6785]
[1747246032369,5.6776,176.11,176.08,5.6783]
[1747246032569,5.6774,176.11,176.04,68.9587]
[1747246032766,10.03328431,176.13,176.04,68.9587]
[1747246033068,5.6779,176.1,176.06,5.6787]
[1747246033573,5.4828,176.16,176.04,68.9587]
[1747246033769,5.6766,176.14,176.1,5.6775]
[1747246033966,64.34,176.15,176.04,68.9587]
[1747246034474,64.34,176.15,176.04,3.6587]
[1747246034769,10.03328431,176.14,176.05,65.3]
[1747246034975,5.6773,176.12,176.05,65.3]
[1747246035272,10.03328431,176.14,176.05,65.3]
[1747246035573,5.6772,176.12,176.08,5.6781]
[1747246035773,5.6772,176.12,176.05,65.3]
[1747246036276,5.6772,176.12,176.08,5.6781]
[1747246036477,5.6774,176.11,176.08,5.6781]
[1747246036684,5.6774,176.11,176.05,65.3]
[1747246036885,5.6774,176.11,176.07,5.6784]
[1747246037078,5.6774,176.11,176.05,65.3]
[1747246037583,5.6772,176.12,176.05,65.3]
[1747246037886,5.6772,176.12,176.08,5.6781]
[1747246038078,5.6772,176.12,176.05,65.3]
[1747246038481,5.6769,176.13,176.09,5.6778]
[1747246038680,64.38,176.14,176.09,5.6778]
[1747246039480,5.6772,176.12,176.09,5.6778]
[1747246041586,64.38,176.14,176.05,65.3]
[1747246042180,64.38,176.14,176.07,5.6786]
[1747246042687,5.6776,176.11,176.07,5.6786]
[1747246043688,5.6777,176.1,176.06,5.6789]
[1747246044689,5.6777,176.1,176.07,5.6786]
[1747246045094,5.6775,176.11,176.07,5.6786]
[1747246045790,5.6777,176.1,176.07,5.6786]
[1747246046089,64.38,176.14,176.07,5.6786]
[1747246046286,5.6774,176.11,176.08,5.6783]
[1747246046488,64.38,176.14,176.04,78.99198431]
[1747246046788,70.0566,176.14,176.1,5.6777]
[1747246046979,64.38,176.14,176.1,5.6777]
[1747246047178,64.0,176.15,176.1,5.6777]
[1747246047386,5.677,176.13,176.04,68.9587]
[1747246047590,5.677,176.13,176.09,5.678]
[1747246049087,5.677,176.13,176.1,5.6776]
[1747246049288,64.0,176.15,176.04,78.99198431]
[1747246049689,5.6771,176.12,176.04,78.99198431]
[1747246049891,64.0,176.15,176.04,68.9587]
[1747246050189,5.6769,176.13,176.09,5.6778]
[1747246050392,5.6769,176.13,176.04,68.9587]
[1747246050586,64.0,176.15,176.04,68.9587]
[1747246051193,5.6786,176.08,176.04,5.6794]
[1747246051782,63.84,176.09,176.02,5.68]
[1747246051988,63.84,176.09,176.02,64.18]
[1747246052290,5.6791,176.06,176.02,64.18]
[1747246052586,63.84,176.09,176.03,5.6798]
[1747246052986,5.6789,176.07,176.03,5.6798]
[1747246053392,63.84,176.09,176.03,5.6798]
[1747246053592,5.6788,176.07,176.03,5.6798]
[1747246054083,5.6788,176.07,176.04,5.6795]
[1747246056792,63.84,176.09,176.05,5.6792]
[1747246057091,63.84,176.09,176.02,64.18]
[1747246057288,5.6786,176.08,176.04,5.6795]
[1747246057488,5.6786,176.08,176.02,64.18]
[1747246057894,5.6787,176.07,176.04,5.6795]
[1747246058392,5.6784,176.08,176.05,5.6791]
[1747246059297,10.03328431,176.12,176.02,64.18]
[1747246059491,127.58,176.13,176.03,3.7043]
[1747246059797,5.6774,176.11,176.09,5.678]
[1747246059997,127.58,176.13,176.09,5.678]
[1747246060589,5.6775,176.11,176.07,5.6784]
[1747246060902,10.03328431,176.12,176.03,64.2]
[1747246061092,5.6783,176.09,176.05,5.6791]
[1747246061292,10.03328431,176.12,176.05,5.6791]
[1747246062295,5.6784,176.08,176.05,5.6791]
[1747246062698,5.6782,176.09,176.05,5.6791]
[1747246063592,5.6779,176.1,176.06,5.679]
[1747246064495,5.6779,176.1,176.07,5.6786]
[1747246064693,10.03328431,176.09,176.0,1.878]
[1747246064896,10.03328431,176.09,176.01,64.2]
[1747246065294,5.6789,176.07,176.01,64.2]
[1747246065495,5.6789,176.07,176.03,5.6797]
[1747246065697,5.6786,176.08,176.01,64.2]
[1747246065895,10.03328431,176.09,176.01,64.2]
[1747246066097,10.03328431,176.09,176.03,5.6798]
[1747246066297,5.6788,176.07,176.03,5.6798]
[1747246070402,5.679,176.06,176.03,5.6798]
[1747246070995,5.6788,176.07,176.03,5.6798]
[1747246071198,10.03328431,176.12,176.01,64.2]
[1747246071497,63.84,176.12,176.01,64.2]
[1747246071700,63.84,176.12,176.07,5.6784]
[1747246071891,63.84,176.12,176.01,64.2]
[1747246072096,5.6774,176.11,176.01,64.2]
[1747246072304,63.84,176.12,176.07,5.6785]
[1747246072905,5.6777,176.1,176.07,5.6785]
[1747246073099,63.84,176.12,176.01,64.2]
[1747246073404,64.18,176.13,176.01,64.2]
[1747246073604,63.74,176.12,176.05,5.6791]
[1747246074097,73.77328431,176.12,176.04,64.2]
[1747246074294,5.6782,176.09,176.06,5.679]
[1747246076310,73.77328431,176.12,176.0,1.878]
[1747246076510,73.77328431,176.12,176.01,63.68]
[1747246077008,5.6786,176.08,176.05,5.6793]
[1747246077308,73.77328431,176.12,176.01,63.68]
[1747246077501,5.6779,176.1,176.06,5.6787]
[1747246077708,63.74,176.12,176.06,5.6787]
[1747246079707,5.6782,176.09,176.06,5.6787]
[1747246081911,5.6774,176.11,176.08,5.6782]
[1747246082104,63.34,176.12,176.04,63.68]
[1747246082410,69.0171,176.12,176.04,63.68]
[1747246082909,69.0171,176.12,176.08,5.6781]
[1747246083312,5.6775,176.11,176.08,5.6781]
[1747246084713,5.6778,176.1,176.07,5.6786]
[1747246085426,5.6775,176.11,176.07,5.6786]
[1747246085915,5.6779,176.1,176.06,5.6789]
[1747246086218,127.38,176.13,176.05,63.66]
[1747246086515,127.38,176.13,176.08,5.6782]
[1747246086708,5.6772,176.12,176.08,5.6782]
[1747246086910,5.6772,176.12,176.05,63.66]
[1747246087113,5.6775,176.11,176.05,63.66]
[1747246088019,5.6777,176.1,176.08,5.6783]
[1747246090322,5.6777,176.1,176.07,5.6786]
[1747246091819,5.6775,176.11,176.07,5.6786]
[1747246092019,5.6775,176.11,176.08,5.6783]
[1747246092924,5.6772,176.12,176.09,5.678]
[1747246095318,5.6772,176.12,176.08,5.6782]
[1747246095520,127.2,176.13,176.03,63.66]
[1747246095818,127.2,176.13,176.06,5.6788]
[1747246096015,127.2,176.13,176.03,63.66]
[1747246096511,127.2,176.13,176.06,5.6788]
[1747246097520,5.6782,176.09,176.06,5.6788]
[1747246098422,127.2,176.13,176.03,63.66]
[1747246099623,5.6782,176.09,176.06,5.6789]
[1747246101419,127.2,176.13,176.01,3.6691]
[1747246101420,5.6786,176.08,176.01,3.6691]
[1747246101624,10.03328431,176.1,176.01,63.66]
[1747246102023,5.6793,176.05,176.02,5.6802]
[1747246102323,10.03328431,176.07,176.0,63.66]
[1747246102517,5.6793,176.05,176.0,63.66]
[1747246102823,62.62,176.08,176.0,63.66]
[1747246103018,68.2985,176.08,176.04,5.6794]
[1747246103217,62.62,176.08,176.04,5.6794]
[1747246103412,62.62,176.08,176.0,63.66]
[1747246103612,5.6789,176.07,176.03,5.6797]
[1747246104221,5.6789,176.07,176.04,5.6796]
[1747246104424,62.62,176.08,176.0,63.66]
[1747246105222,62.62,176.08,176.0,73.69328431]
[1747246105423,62.62,176.08,176.01,5.6095]
[1747246105721,62.44,176.12,176.02,62.44]
[1747246106022,5.6778,176.1,176.07,5.6785]
[1747246106426,62.44,176.12,176.07,5.6785]
[1747246106619,62.44,176.12,176.01,5.6095]
[1747246106821,10.03328431,176.11,176.02,62.48]
[1747246107124,5.6787,176.07,176.04,5.6795]
[1747246107424,10.03328431,176.11,176.04,5.6795]
[1747246107931,5.6787,176.07,176.03,5.6798]
[1747246108223,10.03328431,176.11,176.03,5.6798]
[1747246109221,5.6789,176.07,176.03,5.6798]
[1747246110023,5.6791,176.06,176.02,68.1603]
[1747246110321,10.03328431,176.11,176.02,62.48]
[1747246110521,5.6786,176.08,176.04,5.6794]
[1747246110823,10.03328431,176.11,176.02,62.48]
[1747246111025,5.6786,176.08,176.03,5.6799]
[1747246111218,10.03328431,176.11,176.03,5.6799]
[1747246112026,10.03328431,176.11,176.02,62.48]
[1747246112323,5.6792,176.06,176.02,62.48]
[1747246112519,5.6792,176.06,176.02,68.1602]
[1747246113329,5.6797,176.04,176.0,68.1609]
[1747246113521,63.12,176.07,175.96,15.64168431]
[1747246113825,63.12,176.07,176.0,5.6807]
[1747246114825,5.6798,176.04,176.0,5.6807]
[1747246115127,63.12,176.07,176.0,5.6807]
[1747246115332,63.12,176.07,175.96,15.64168431]
[1747246115624,63.12,176.07,175.99,62.48]
[1747246115826,5.6802,176.03,175.99,62.48]
[1747246116827,5.6802,176.03,175.99,68.161]
[1747246117929,5.6802,176.03,176.0,5.6809]
[1747246118432,5.6802,176.03,175.99,62.48]
[1747246119229,5.6802,176.03,175.99,68.161]
[1747246119728,5.6803,176.02,175.99,68.161]
[1747246120131,66.6735,176.07,175.99,68.161]
[1747246120329,5.68,176.03,175.99,68.161]
[1747246121930,5.6803,176.02,175.99,68.161]
[1747246122630,5.6801,176.03,175.99,68.161]
[1747246123430,5.6801,176.03,176.0,5.6809]
[1747246124626,5.6801,176.03,175.99,68.1611]
[1747246125730,5.6801,176.03,176.0,5.6808]
[1747246127132,5.6801,176.03,175.99,68.1611]
[1747246127829,5.6803,176.02,175.99,5.6811]
[1747246128131,66.6735,176.07,175.99,5.6811]
[1747246128331,10.03328431,176.05,175.96,5.6084]
[1747246128532,10.03328431,176.05,175.97,62.5]
[1747246129331,10.03328431,176.05,175.98,5.6814]
[1747246129533,10.03328431,176.05,175.97,62.5]
[1747246129734,10.03328431,176.05,175.99,5.681]
[1747246130029,10.03328431,176.05,175.97,62.5]
[1747246130235,10.03328431,176.05,175.98,5.6814]
[1747246130834,5.6803,176.02,175.98,5.6814]
[1747246131333,10.03328431,176.05,175.98,5.6814]
[1747246132236,5.6805,176.02,175.98,5.6814]
[1747246132739,5.6805,176.02,175.99,5.6811]
[1747246133035,5.68,176.03,175.99,5.6811]
[1747246133837,5.68,176.03,176.0,5.6809]
[1747246134337,5.6804,176.02,175.98,5.6813]
[1747246135234,5.6804,176.02,175.99,5.6812]
[1747246136037,5.6801,176.03,175.99,5.6812]
[1747246136236,10.03328431,176.05,176.0,5.6807]
[1747246136640,5.6799,176.04,176.0,5.6807]
[1747246137142,5.68,176.03,176.0,5.6807]
[1747246137437,5.68,176.03,175.99,5.6811]
[1747246137637,5.68,176.03,175.97,62.5]
[1747246138049,5.68,176.03,175.99,5.6809]
[1747246138247,5.68,176.03,175.97,62.5]
[1747246138546,5.6798,176.04,176.0,5.6807]
[1747246138746,10.03328431,176.05,176.0,5.6807]
[1747246138948,5.68,176.03,176.0,5.6807]
[1747246141354,6.40650353,176.02,176.0,5.6807]
[1747246141755,12.08680353,176.02,175.99,5.6812]
[1747246142251,6.40650353,176.02,175.99,5.6812]
[1747246142651,6.40650353,176.02,175.95,497.22650353]
[1747246142853,6.40650353,176.0,175.96,62.04]
[1747246143954,6.40650353,176.0,175.98,5.6813]
[1747246144153,6.40650353,176.0,175.96,62.04]
[1747246144655,6.40650353,176.0,175.99,5.6812]
[1747246145356,6.40650353,176.0,175.98,5.6814]
[1747246146958,12.08740353,176.0,175.98,5.6814]
[1747246147158,6.40650353,176.0,175.98,5.6814]
[1747246148153,6.40650353,176.0,175.99,5.6812]
[1747246148352,6.40650353,176.0,175.96,62.04]
[1747246148955,6.40650353,176.01,175.96,62.04]
[1747246149459,6.40650353,176.01,175.99,5.681]
[1747246150260,12.08710353,176.01,175.99,5.681]
[1747246151355,6.40650353,176.01,175.99,5.681]
[1747246153162,12.08720353,176.01,175.99,5.681]
[1747246153862,5.6811,176.0,175.95,497.22650353]
[1747246154162,6.40650353,175.99,175.95,552.86]
[1747246154464,6.40650353,175.99,175.96,5.6821]
[1747246154656,61.98,176.02,175.92,5.4718]
[1747246154657,6.40650353,175.97,175.92,5.4718]
[1747246155165,6.40650353,175.95,175.92,5.4718]
[1747246155365,6.40650353,175.95,175.91,62.04]
[1747246155562,6.40650353,175.95,175.92,5.6833]
[1747246155963,6.40650353,175.95,175.91,62.04]
[1747246156163,6.40650353,175.95,175.93,5.683]
[1747246156364,6.40650353,175.95,175.9,62.04]
[1747246156565,6.40650353,175.93,175.88,82.25885402]
[1747246156764,6.40650353,175.93,175.88,144.29885402]
[1747246157362,61.56,175.97,175.88,144.29885402]
[1747246157566,5.6831,175.94,175.88,144.29885402]
[1747246158061,5.6831,175.94,175.91,5.6836]
[1747246158267,5.6833,175.93,175.88,62.04]
[1747246158867,5.6833,175.93,175.89,5.6843]
[1747246159070,5.683,175.94,175.88,62.04]
[1747246159272,10.02009573,175.96,175.88,62.04]
[1747246159471,10.02009573,175.96,175.89,5.6843]
[1747246159672,5.6834,175.93,175.89,5.6843]
[1747246159870,10.02009573,175.93,175.88,5.6847]
[1747246160076,61.38,175.92,175.88,5.6847]
[1747246160375,67.0637,175.92,175.88,5.6847]
[1747246160568,61.38,175.92,175.87,5.685]
[1747246160768,61.38,175.92,175.86,553.06]
[1747246161071,5.684,175.91,175.87,5.685]
[1747246161272,5.684,175.91,175.86,553.06]
[1747246161477,61.38,175.92,175.86,553.06]
[1747246161777,67.0638,175.92,175.86,553.06]
[1747246162274,5.6839,175.91,175.88,5.6846]
[1747246162779,7.7611,176.01,175.86,553.06]
[1747246163076,7.7611,176.01,175.89,61.32]
[1747246163077,65.0811,176.01,175.89,61.32]
[1747246163270,5.6819,175.97,175.93,5.683]
[1747246163472,5.6819,175.97,175.93,67.743]
[1747246163671,5.6819,175.97,175.93,62.06]
[1747246163871,5.6819,175.97,175.94,5.6827]
[1747246164475,5.6822,175.96,175.93,67.7432]
[1747246164673,5.6822,175.96,175.93,5.6832]
[1747246165074,5.6827,175.95,175.91,67.7437]
[1747246165575,5.6829,175.94,175.9,11.3407]
[1747246165782,10.02009573,175.99,175.9,5.6841]
[1747246166080,61.5,175.98,175.9,5.6841]
[1747246166979,5.6833,175.93,175.9,5.6841]
[1747246167178,10.02009573,175.96,175.88,61.46]
[1747246167380,10.02009573,175.96,175.86,552.46]
[1747246167677,10.02009573,175.93,175.86,491.0]
[1747246167982,61.46,175.92,175.85,61.46]
[1747246169484,10.02009573,175.9,175.79,5.6301]
[1747246169671,10.02009573,175.9,175.8,61.48]
[1747246170079,5.6859,175.85,175.8,61.48]
[1747246170578,61.54,175.86,175.8,61.48]
[1747246170783,61.54,175.86,175.84,5.6858]
[1747246171285,61.54,175.86,175.8,61.48]
[1747246171785,61.54,175.86,175.82,5.6865]
[1747246172484,61.54,175.86,175.83,5.6862]
[1747246172885,61.54,175.86,175.8,61.48]
[1747246173879,67.2256,175.86,175.82,5.6867]
[1747246174686,5.6858,175.85,175.82,5.6867]
[1747246175585,67.2255,175.86,175.82,5.6867]
[1747246175984,61.54,175.86,175.82,5.6867]
[1747246176381,61.54,175.86,175.8,61.48]
[1747246176884,5.6858,175.85,175.82,5.6866]
[1747246177285,61.54,175.86,175.82,5.6866]
[1747246177585,61.54,175.86,175.81,5.687]
[1747246178284,5.6863,175.84,175.81,5.687]
[1747246178486,61.54,175.86,175.82,5.6867]
[1747246178888,5.686,175.85,175.82,5.6867]
[1747246179186,61.54,175.86,175.81,5.6869]
[1747246180081,5.6858,175.85,175.81,5.6869]
[1747246180587,61.54,175.86,175.8,61.48]
[1747246180887,61.48,175.88,175.8,61.48]
[1747246181086,61.48,175.88,175.85,5.6857]
[1747246181283,67.1649,175.88,175.85,5.6857]
[1747246181485,61.48,175.88,175.8,61.48]
[1747246181683,67.1649,175.88,175.8,61.48]
[1747246181887,61.48,175.88,175.8,61.48]
[1747246182385,5.6853,175.87,175.8,61.48]
[1747246182887,5.6853,175.87,175.84,5.6861]
[1747246183190,5.6856,175.86,175.84,5.6861]
[1747246183489,5.6856,175.86,175.83,5.6863]
[1747246183884,5.6852,175.87,175.84,5.686]
[1747246185389,5.6855,175.86,175.83,5.6863]
[1747246185890,61.44,175.88,175.82,5.6866]
[1747246186292,61.44,175.88,175.8,61.48]
[1747246186689,5.6856,175.86,175.82,5.6865]
[1747246186989,5.6856,175.86,175.8,61.48]
[1747246187290,5.6858,175.85,175.8,61.48]
[1747246187589,5.6858,175.85,175.81,5.6869]
[1747246187795,5.6858,175.85,175.8,61.48]
[1747246188393,5.6858,175.85,175.83,5.6862]
[1747246190295,5.6858,175.85,175.82,5.6866]
[1747246191697,5.6861,175.84,175.81,5.687]
[1747246192496,61.44,175.88,175.79,5.6301]
[1747246192996,61.44,175.88,175.8,5.6872]
[1747246193592,5.6863,175.84,175.8,5.6872]
[1747246193892,66.8663,175.84,175.8,5.6872]
[1747246194093,5.6865,175.83,175.8,5.6872]
[1747246194997,5.6865,175.83,175.79,9.5088]
[1747246195598,5.687,175.82,175.78,61.5]